Cogmind - Beta 14 @@@ ROGUE MODE // 2025.03.15 @ 21:22:59 Player: GiggleBox Result: Self-destructed Performance ------------- Evolutions (1) 500 Regions Visited (2) 400 Robots Destroyed (26) 130 Value Destroyed (601) 601 Prototype IDs (1) 20 Alien Tech Used (0) 0 Bonus (200) 200 TOTAL SCORE: 1851 Bonus ------- Pacifist 200 Cogmind --------- Core Integrity 158/400 Matter 235/300 Energy 100/100 System Corruption 0% Temperature Cool (0) Movement Treading (160) Location -9/Materials Parts ------- > --- POWER (1) -------- (None) > --- PROPULSION (3) --- Light Treads > --- UTILITY (2) ------ Medium Storage Unit > --- WEAPON (3) ------- Heavy Assault Rifle Mining Claw > --- INVENTORY (10) --- Light Treads Hover Unit Hardened Light Armor Plating Shield Generator Autogun Autogun Autogun Datajack Peak State ------------ > --- POWER ------------ Light Nuclear Core > --- PROPULSION ------- Light Treads Improved Treads Improved Treads > --- UTILITY ---------- Small Storage Unit Light Armor Plating > --- WEAPON ----------- Autogun Autogun Autogun > --- INVENTORY -------- Improved Ion Engine Light Treads Light Treads Light Treads Light Treads Autogun Autogun Datajack [Rating: 17] Favorites ----------- Power Heavy Ion Engine Engine Heavy Ion Engine Power Core Light Nuclear Core Propulsion Light Treads Treads Light Treads Leg Aluminum Leg Utility Small Storage Unit Device Sensor Array Storage Small Storage Unit Protection Light Armor Plating Weapon Autogun Ballistic Gun Autogun Slashing Weapon Mining Claw Build | -11 -10 -9 ------- Run | Yrd Mat Mat Slots Evolved 2 | . . 2 Power . | . . . Propulsion 1 | . . 1 Utility . | . . . Weapon 1 | . . 1 Parts Attached 34 | 7 2 25 Power 6 | 1 . 5 Engine 4 | 1 . 3 Core 2 | . . 2 Reactor . | . . . Propulsion 10 | 2 . 8 Treads 8 | . . 8 Leg 2 | 2 . . Wheel . | . . . Hover . | . . . Flight . | . . . Utility 4 | 1 . 3 Device 1 | . . 1 Storage 2 | 1 . 1 Processor . | . . . Hackware . | . . . Protection 1 | . . 1 Artifact . | . . . Weapon 14 | 3 2 9 Energy Gun . | . . . Energy Cannon . | . . . Ballistic Gun 12 | 3 2 7 Ballistic Cannon . | . . . Launcher . | . . . Special Weapon . | . . . Impact Weapon . | . . . Slashing Weapon 2 | . . 2 Piercing Weapon . | . . . Special Melee Weapon . | . . . Unidentified Prototypes 1 | . . 1 Parts Lost 9 | . . 9 Power 2 | . . 2 Propulsion 3 | . . 3 Utility 2 | . . 2 Weapon 2 | . . 2 Highest Loss Streak 4 | . . 4 To Critical Strikes . | . . . Average Slot Usage (%) 93 | . 83 95 Engine 8 | . 14 8 Core 2 | . . 2 Treads 27 | . . 31 Leg 3 | . 28 . Device 3 | . . 4 Storage 11 | . 14 11 Protection 4 | . . 5 Ballistic Gun 28 | . 26 28 Slashing Weapon 2 | . . 2 Peak Build Rating 17 | 6 8 17 Average Rating 13 | 4 7 14 On Entrance 4 | . 6 8 Naked Turns . | . . . Heaviest Build 28 | 12 14 28 Greatest Support 66 | 20 20 66 Greatest Overweight (x) 3 | 3 . . Average Overweight (x) . | . . . Largest Inventory Capacity 10 | 8 8 10 Average Capacity 8 | 7 8 8 Most Carried 10 | 4 5 10 Average Carried 5 | 1 1 5 Final Capacity 10 | 8 8 10 Final Carried 8 | 1 2 8 Class Distribution -------------------- 51% | Mutant 33% | Tank 14% | Skirmisher Dominant Class ---------------- Mutant | -10/Materials Mutant | -9/Materials Resources | -11 -10 -9 ----------- Run | Yrd Mat Mat Matter Collected 996 | 205 . 791 Remotely . | . . . Salvage Created 875 | . . 875 Parts 58 | . . 58 Haulers Intercepted 1 | . . 1 Recyclers Shooed . | . . . Parts Field Recycled . | . . . Retrieved Matter . | . . . Parts Self-Destructed . | . . . Prevented . | . . . Kills | -11 -10 -9 ------- Run | Yrd Mat Mat Combat Hostiles Destroyed 19 | . . 19 Melee 6 | . . 6 Guns 13 | . . 13 Classes Destroyed 8 | . . 8 Worker 2 | . . 2 Hauler 1 | . . 1 Recycler 1 | . . 1 Operator 1 | . . 1 Watcher 2 | . . 2 Swarmer 8 | . . 8 Grunt 5 | . . 5 Sentry 6 | . . 6 Best Kill Streak 9 | . . 9 Combat Bots Only 6 | . . 6 Max Kills in Single Turn 1 | . . 1 Gunslinging . | . . . Exploded . | . . . Melee 1 | . . 1 Uniques/NPCs Destroyed . | . . . Combat | -11 -10 -9 -------- Run | Yrd Mat Mat Hostile Shots Fired 209 | . . 209 Missed 62 | . . 62 Damage Taken 1744 | . . 1744 Core 242 | . . 242 Absorbed by Shields . | . . . Core Remaining (%) 100 | 100 100 . Volleys Fired 65 | . 1 64 Largest 3 | . 2 3 Hottest 69 | . 46 69 Shots Fired 152 | . 2 150 Gun 152 | . 2 150 Cannon . | . . . Launcher . | . . . Special . | . . . Kinetic 152 | . 2 150 Thermal . | . . . Explosive . | . . . Electromagnetic . | . . . Robot Hit Streak 10 | . . 10 Robot Miss Streak 3 | . 2 3 Penetration Max . | . . . Secondary Targets . | . . . Shots Hit Robots 114 | . . 114 Core Hits 34 | . . 34 Critical Kills . | . . . Critical Parts Destroyed . | . . . Critical Strikes . | . . . Melee Attacks 27 | . . 27 Impact . | . . . Slashing 27 | . . 27 Piercing . | . . . Sneak Attacks 3 | . . 3 Combat Hostiles . | . . . Follow-up Attacks . | . . . Damage Inflicted 1963 | . . 1963 Guns 1458 | . . 1458 Cannons . | . . . Explosions . | . . . Melee 496 | . . 496 Ramming 9 | . . 9 Kinetic 1458 | . . 1458 Thermal . | . . . Explosive . | . . . Electromagnetic . | . . . Impact . | . . . Slashing 496 | . . 496 Piercing . | . . . Highest Corruption . | . . . Average Corruption . | . . . Corruption Purged . | . . . Corruption Blocked . | . . . Overload Shots . | . . . Overflow Damage 11 | . . 11 Projectiles . | . . . Explosions . | . . . Melee 11 | . . 11 Knockbacks . | . . . Impact . | . . . Kinetic . | . . . Secondary . | . . . Self-Inflicted Damage . | . . . Shots . | . . . Rammed 1 | . . 1 Targets Rammed 1 | . . 1 Kicked . | . . . Crushed . | . . . Highest Temperature 208 | . 6 208 Average Temperature 55 | . 4 55 Received Heat Transfer 711 | . . 711 Siege Activations . | . . . Robots Corrupted . | . . . Combat Hostiles . | . . . Parts Fried . | . . . Impact Corruptions . | . . . Robots Melted . | . . . Combat Hostiles . | . . . Parts Melted . | . . . Heat Transferred . | . . . Parts Sabotaged . | . . . Parts Stolen . | . . . Parts Stripped . | . . . Power Chain Reactions . | . . . Alert | -11 -10 -9 ------- Run | Yrd Mat Mat Peak Influence 313 | . 15 313 Initial 5 | . . 5 Average 116 | . 5 139 Maximum Alert Level 1 | . . 1 Low Security (%) 74 | 100 100 69 Level 1 25 | . . 30 Level 2 . | . . . Level 3 . | . . . Level 4 . | . . . Level 5 . | . . . High Security . | . . . Max Security . | . . . Squads Dispatched 2 | . 1 1 Investigation . | . . . Extermination . | . . . Reinforcement 2 | . 1 1 Assault . | . . . Garrison . | . . . Intercept . | . . . Searches Triggered . | . . . Construction Impeded . | . . . Haulers Reinforced . | . . . Active Scanning Responses . | . . . Cargo Convoy Interrupts . | . . . Stealth | -11 -10 -9 --------- Run | Yrd Mat Mat Distress Signals 3 | . . 3 Communications Jammed . | . . . Distress Signals . | . . . Times Spotted 33 | . 2 31 Peak Tracking Total 6 | . 1 6 Tactical Retreats 3 | . . 3 Traps | -11 -10 -9 ------- Run | Yrd Mat Mat Traps Triggered . | . . . Indirectly . | . . . Trap Hack Attempts . | . . . Triggered . | . . . Disarmed . | . . . Reprogrammed . | . . . Reused . | . . . Traps Extracted . | . . . Installed . | . . . Triggered . | . . . Machines | -11 -10 -9 ---------- Run | Yrd Mat Mat Machines Disabled 1 | . . 1 Max in Single Turn 1 | . . 1 Machines Repaired . | . . . Machines Dismantled . | . . . Machines Sabotaged . | . . . Overloaded Fab Kills . | . . . Hacking | -11 -10 -9 --------- Run | Yrd Mat Mat Machines Accessed 1 | . . 1 Terminals 1 | . . 1 Fabricators . | . . . Repair Stations . | . . . Recycling Units . | . . . Scanalyzers . | . . . Garrison Access . | . . . Total Hacks 1 | . . 1 Successful 1 | . . 1 Failed . | . . . Catastrophic . | . . . Database Lockouts . | . . . Manual 1 | . . 1 Terminals 1 | . . 1 Fabricators . | . . . Repair Stations . | . . . Recycling Units . | . . . Scanalyzers . | . . . Garrison Access . | . . . Terminal Hacks 1 | . . 1 Locate Traps 1 | . . 1 Fabricator Hacks . | . . . Repair Station Hacks . | . . . Recycling Unit Hacks . | . . . Scanalyzer . | . . . Garrison Access Hacks . | . . . Unauthorized Hacks . | . . . Terminals . | . . . Fabricators . | . . . Repair Stations . | . . . Recycling Units . | . . . Scanalyzers . | . . . Garrison Access . | . . . Data Cores Recovered . | . . . Used . | . . . Hacking Detections 1 | . . 1 Full Trace Events . | . . . Feedback Events . | . . . Feedback Blocked . | . . . Robot Schematics Acquired . | . . . Robots Built . | . . . Authchips . | . . . Time . | . . . Total Robot Build Rating . | . . . Part Schematics Acquired . | . . . Parts Built . | . . . Authchips . | . . . Time . | . . . Total Part Build Rating . | . . . Parts Repaired . | . . . Time . | . . . Parts Recycled . | . . . Recycled Matter . | . . . Retrieved Matter . | . . . Retrieved Components . | . . . Parts Scanalyzed . | . . . Part Schematics Acquired . | . . . Parts Damaged . | . . . Bothacking | -11 -10 -9 ------------ Run | Yrd Mat Mat Used RIF Installer . | . . . Robots Hacked . | . . . Non-combat . | . . . Combat . | . . . Robot Hacks Applied . | . . . Relay Couplers Released . | . . . Fabnet Peak Effective % . | . . . Robots Rewired . | . . . Allies Hacked . | . . . Hacks Repelled . | . . . Allies | -11 -10 -9 -------- Run | Yrd Mat Mat Total Allies . | . . . Largest Group . | . . . Highest-Rated Group . | . . . Highest-Rated Ally . | . . . Total Orders . | . . . Ally Attacks . | . . . Total Damage . | . . . Kills . | . . . Allies Corrupted . | . . . Allies Melted . | . . . Intel | -11 -10 -9 ------- Run | Yrd Mat Mat Robot Analysis Total . | . . . Derelict Logs Recovered . | . . . Drone Launches . | . . . Drone Recoveries . | . . . Exploration | -11 -10 -9 ------------- Run | Yrd Mat Mat Turns Passed 1379 | 61 176 1142 Spaces Moved 679 | 36 136 507 Core 18 | 18 . . Treads 500 | . . 500 Legs 161 | 18 136 7 Wheels . | . . . Hover . | . . . Flight . | . . . Fastest Speed 50 | 50 120 120 Average Speed 150 | 130 120 159 Slowest Speed 200 | 200 120 160 Overloaded Moves . | . . . Propulsion Burnouts . | . . . Robots Hopped . | . . . Cave-ins Triggered . | . . . Exploration Rate (%) 23 | 4 25 40 Regions Visited 2 Branch Regions . Pre-discovered Areas . | . . . Known Exits Taken . | . . . Unknown Exits Taken 2 | 1 1 . Scrap Searched . | . . . Spaces Dug . | . . . Terrain Destroyed . | . . . Melee . | . . . Projectile . | . . . AOE . | . . . Terrain Rammed . | . . . Walls Destroyed . | . . . Machines Disabled . | . . . Actions | -11 -10 -9 --------- Run | Yrd Mat Mat Total 880 | 49 149 682 Wait 12 | . . 12 Move 677 | 35 135 507 Hop . | . . . Pick Up 42 | 7 6 29 Fast Attach . | . . . Attach 18 | 6 2 10 Detach . | . . . Swap 16 | 1 . 15 Drop 22 | . 5 17 Fire 65 | . 1 64 Melee 27 | . . 27 Ram . | . . . Kick . | . . . Crush 1 | . . 1 Escape Stasis . | . . . Rewire . | . . . Trap . | . . . Miscellaneous . | . . . Route ------- -11/Scrapyard -10/Materials -9/Materials History --------- Turn | Location | Event 2 | -11/Scrapyard | Met Revision 17 13 | -11/Scrapyard | Discovered new exit (range 16) 62 | -11/Scrapyard | Entered Materials 229 | -10/Materials | Discovered new exit (range 3) 238 | -10/Materials | Entered another Materials area 238 | -9/Materials | Evolved 2 slots: Propulsion x1, Weapon x1 648 | -9/Materials | Build established: Tank 1359 | -9/Materials | Core integrity fell below 50% 1380 | -9/Materials | Self-destructed Last Messages --------------- 01320_ Sneak attack on A-02 Transporter. 01322_ K-01 Serf collects debris. 01332_ A-02 Transporter destroyed. 01333_ K-01 Serf collects debris. 01342_ Acquired 40 matter. 01346_ K-01 Serf collects debris. 01348_ Acquired 59 matter. 01354_ R-06 Scavenger collects Ion Engine. 01356_ Hvy. Assault Rifle destroyed. 01359_ R-06 Scavenger collects Heat Sink. 01361_ S-10 Pest destroyed. 01362_ Imp. Treads destroyed. 01363_ Sensor Array destroyed. 01363_ S-10 Pest destroyed. 01367_ R-06 Scavenger collects Transport Network Coupler. 01367_ S-10 Pest destroyed. 01370_ R-06 Scavenger collects Lgt. Assault Rifle. 01371_ Hvy. Ion Engine destroyed. 01371_ S-10 Pest destroyed. 01375_ Acquired 17 matter. Map ----- +----------------------------------------------------+ | ?????????????????????????????????????????????????? | | ?????????????????????????????????????????????????? | | ?????????????????????????????????????????????????? | | ?????????????????????????????????????????????????? | | ?????????????????????????????????????????????????? | | ?????????????????????????????????????????????????? | | ?????????????????????????????????????????????????? | | ?????????????????????????????????????????????????? | | ?????????????????????????????????????????????????? | | ?????????????????????????????????????????????????? | | ???????????????????????? ???????????????????? | | ??????????????????????? ???????????????????? | | ???????????????????????" ??????????????????? | | ??????????????????????"" ???????????????????? | | ??????????????????"??""" ???????????????????? | | ?????????????#???? ?? #???????????????????? | | ?????????????# ?? ? #???????????????????? | | ????????????## """ """ #???????????????????? | | ????????????? """ """ #???????????????????? | | ????????????? """ """ #?????#####?????????? | | ?????????????? #???? ??????????? | | ?????????????? #??? """??????????? | | ????????????? """ """ #??? """??????????? | | ??????????? ? """ """ * ### """ ?????????? | | ?????? """ """=%[ #! #????????? | | ?????? *!= =@ +%" ""????????????? | | ?????? r%=== # "R"?????????????? | | ?????????## #"%"### #?????????????????? | | ??????????## #### #"R"#?# #?????????????????? | | ???????????# ?????#?#"""#?#* #?????????????????? | | ????????????????????#####?# ########?????????????? | | ????????????????###+####### # #?????????????? | | ????????????????# ] + [+ #?????????????? | | ????????????????# #### "" #?????????????? | | ????????????????# #??#*!"" #?????????????? | | ????????????????# #??# "" #?????????????? | | ????????????????# #??#! #?????????????? | | ????????????????# !!! #??### ####?????????????? | | ????????????????# !! #?????##????????????????? | | ????????????????# !! #???????????????????????? | | ???????????# ???#* #???????????????????????? | | ???????##### ##/########???????????????????????? | | ?? #???????????????????????? | | ?? #???????????????????????? | | ?? ####??????????????? ????? | | ???######+#######+#### !##?????????????? ????? | | ?????????????????????# !#?????????????? ????? | | ?????????????????????# !#?????????????? ????? | | ?????????????????????# !#?????????????? ????? | | ?????????????????????# !#?????????????? ????? | +----------------------------------------------------+ Best States ------------- Heat Dissipation 28 Energy Generation 14 Energy Capacity 280 Matter Stores 235 Matter Capacity 300 Sight Range 16 Robot Scan Range 14 Terrain Scan Density 10 Armor Coverage 150 Evasion (%) 55 Recoil Reduction 3 Item Schematics ----------------- None Robot Schematics ------------------ None Fabricated ------------ Nothing Alien Tech Used ----------------- None Achievements -------------- None Challenges ------------ None Game ------ Seed TeleporterHybridClaw Manual? 0 Play Time 00:15:53 Cumulative 9.3 hours Start 2025.03.15 @ 21:08:13 End 2025.03.15 @ 21:22:59 Sessions 1 Manual Loads 0 Difficulty Rogue Special Mode None Game No. 14 Rogue 14 Adventurer 0 Explorer 0 Win Type - Total 0 Types 0/0/0/0/0/0/0/0/0 Lore% 5 Gallery% 16 Achievement% 12 Wizard Run 0 Options --------- Layout 0 ASCII 0 Keyboard 0 Movement Numpad Keybinds 0 Fullscreen 1 Font 24/Smallcaps Map View 76x50 Zoom Use 0% Tactical HUD 1 Map Filters NONE Filters NONE Steam 1 RUN: 41d3c125-357f-4696-8f0e-098ffa2f697e